[Event "*** Titled Tuesday Blitz"]
[Site "Chess.com"]
[Date "2020.11.03"]
[Round "2"]
[White "Lady_Nika"]
[Black "eCztery"]
[Result "1-0"]
[WhiteElo "2450"]
[BlackElo "2254"]
[TimeControl "180+1"]
[EndTime "10:15:51 PST"]
[Termination "Lady_Nika won by resignation"]

1. d4 {[%clk 0:03:00.9]} 1... Nf6 {[%clk 0:02:55]} 2. e3 {[%clk 0:03:00.1]} 2...
e6 {[%clk 0:02:48.7]} 3. Bd3 {[%clk 0:02:59.7]} 3... c5 {[%clk 0:02:48.4]} 4. f4
{[%clk 0:02:59.6]} 4... cxd4 {[%clk 0:02:48]} 5. exd4 {[%clk 0:02:59.8]} 5... d5
{[%clk 0:02:47.1]} 6. Nf3 {[%clk 0:02:59.5]} 6... Nc6 {[%clk 0:02:44.2]} 7. c3
{[%clk 0:02:59.7]} 7... Bd6 {[%clk 0:02:29.5]} 8. Qe2 {[%clk 0:02:57.9]} 8...
O-O {[%clk 0:02:25.6]} 9. O-O {[%clk 0:02:56.9]} 9... Ne7 {[%clk 0:02:18.7]} 10.
Ne5 {[%clk 0:02:55.5]} 10... Nd7 {[%clk 0:02:13.6]} 11. Rf3 {[%clk 0:02:52]}
11... f5 {[%clk 0:02:06.5]} 12. Rh3 {[%clk 0:02:51.2]} 12... Nxe5 {[%clk
0:01:48.3]} 13. fxe5 {[%clk 0:02:50.9]} 13... Bc7 {[%clk 0:01:47.9]} 14. Qh5
{[%clk 0:02:48.9]} 14... Qe8 {[%clk 0:00:58]} 15. Qxh7+ {[%clk 0:02:47.5]} 15...
Kf7 {[%clk 0:00:58.9]} 16. Rg3 {[%clk 0:02:37.3]} 16... Rg8 {[%clk 0:00:57.7]}
17. Be2 {[%clk 0:02:32.8]} 17... Kf8 {[%clk 0:00:53.7]} 18. Bh5 {[%clk
0:02:32.3]} 18... Qb5 {[%clk 0:00:46.9]} 19. Bh6 {[%clk 0:02:30.2]} 1-0

[Event "*** Titled Tuesday Blitz"]
[Site "Chess.com"]
[Date "2020.11.03"]
[Round "2"]
[White "esapunov"]
[Black "KyrgyzFighter"]
[Result "0-1"]
[WhiteElo "2637"]
[BlackElo "2353"]
[TimeControl "180+1"]
[EndTime "10:15:56 PST"]
[Termination "KyrgyzFighter won by resignation"]

1. c4 {[%clk 0:03:00.9]} 1... c6 {[%clk 0:02:54.1]} 2. Nf3 {[%clk 0:03:00.9]}
2... d5 {[%clk 0:02:53.5]} 3. b3 {[%clk 0:03:01.3]} 3... Nf6 {[%clk 0:02:52.1]}
4. Bb2 {[%clk 0:03:01.6]} 4... Bg4 {[%clk 0:02:52.1]} 5. e3 {[%clk 0:03:01.4]}
5... Nbd7 {[%clk 0:02:52.2]} 6. h3 {[%clk 0:03:01.6]} 6... Bh5 {[%clk
0:02:51.8]} 7. Nc3 {[%clk 0:02:57.2]} 7... e5 {[%clk 0:02:51.1]} 8. cxd5 {[%clk
0:02:55.5]} 8... cxd5 {[%clk 0:02:47.4]} 9. Bb5 {[%clk 0:02:41.2]} 9... Bd6
{[%clk 0:02:27.9]} 10. g4 {[%clk 0:02:40.4]} 10... Bg6 {[%clk 0:02:24.4]} 11. g5
{[%clk 0:02:34.1]} 11... Ne4 {[%clk 0:02:20.1]} 12. Nxd5 {[%clk 0:02:25.9]}
12... Nxg5 {[%clk 0:02:16.2]} 13. Nxe5 {[%clk 0:01:59.4]} 13... Bxe5 {[%clk
0:02:10.6]} 14. Bxe5 {[%clk 0:01:58.8]} 14... O-O {[%clk 0:02:08.1]} 15. Bxd7
{[%clk 0:01:39.9]} 15... Qxd7 {[%clk 0:02:05.4]} 16. Nc3 {[%clk 0:01:39.8]}
16... Qc6 {[%clk 0:01:47.3]} 17. Rh2 {[%clk 0:01:20.7]} 17... Nf3+ {[%clk
0:01:43.7]} 18. Kf1 {[%clk 0:01:19]} 18... Bd3+ {[%clk 0:01:42]} 19. Ne2 {[%clk
0:01:16.8]} 19... Nxh2+ {[%clk 0:01:39.5]} 20. Bxh2 {[%clk 0:01:16.3]} 20...
Qh1+ {[%clk 0:01:39.2]} 21. Bg1 {[%clk 0:01:16.4]} 21... Qxh3+ {[%clk
0:01:39.4]} 22. Ke1 {[%clk 0:01:16.7]} 22... Qg2 {[%clk 0:01:38.9]} 0-1

[Event "*** Titled Tuesday Blitz"]
[Site "Chess.com"]
[Date "2020.11.03"]
[Round "2"]
[White "almo64"]
[Black "Oglob71"]
[Result "1-0"]
[WhiteElo "2703"]
[BlackElo "2469"]
[TimeControl "180+1"]
[EndTime "10:15:57 PST"]
[Termination "almo64 won by resignation"]

1. e4 {[%clk 0:03:00.9]} 1... c5 {[%clk 0:02:59.5]} 2. Nc3 {[%clk 0:03:00.7]}
2... a6 {[%clk 0:02:57.9]} 3. g3 {[%clk 0:02:57.1]} 3... b5 {[%clk 0:02:56.3]}
4. Bg2 {[%clk 0:02:57.5]} 4... Bb7 {[%clk 0:02:55.2]} 5. Nge2 {[%clk 0:02:57.7]}
5... b4 {[%clk 0:02:55.3]} 6. Na4 {[%clk 0:02:54.3]} 6... e5 {[%clk 0:02:55.1]}
7. c3 {[%clk 0:02:53.9]} 7... Nf6 {[%clk 0:02:51]} 8. d4 {[%clk 0:02:53.3]} 8...
bxc3 {[%clk 0:02:47.1]} 9. dxe5 {[%clk 0:02:48.5]} 9... cxb2 {[%clk 0:02:45.3]}
10. Bxb2 {[%clk 0:02:48.3]} 10... Nxe4 {[%clk 0:02:45]} 11. O-O {[%clk
0:02:40.8]} 11... Be7 {[%clk 0:02:22.5]} 12. Qc2 {[%clk 0:02:29.7]} 12... d5
{[%clk 0:02:12.5]} 13. exd6 {[%clk 0:02:29.5]} 13... Nxd6 {[%clk 0:02:12.2]} 14.
Bxb7 {[%clk 0:02:29]} 14... Nxb7 {[%clk 0:02:11.1]} 15. Bxg7 {[%clk 0:02:28.8]}
15... Rg8 {[%clk 0:02:11.2]} 16. Qxh7 {[%clk 0:02:28.9]} 16... Rxg7 {[%clk
0:02:10.5]} 17. Qxg7 {[%clk 0:02:28.7]} 17... Nc6 {[%clk 0:01:59.5]} 18. Rad1
{[%clk 0:02:26.1]} 18... Qa5 {[%clk 0:01:58.4]} 19. Nac3 {[%clk 0:02:07.4]}
19... Nbd8 {[%clk 0:01:57]} 20. Nd5 {[%clk 0:02:04.9]} 20... Ne6 {[%clk
0:01:46.5]} 21. Qh8+ {[%clk 0:02:04.9]} 21... Nf8 {[%clk 0:01:43.5]} 22. Nf6+
{[%clk 0:01:42.3]} 22... Bxf6 {[%clk 0:01:41.6]} 23. Qxf6 {[%clk 0:01:42.5]}
23... Qc7 {[%clk 0:01:39]} 24. Rfe1 {[%clk 0:01:40.2]} 24... Ne7 {[%clk
0:01:35]} 25. Nf4 {[%clk 0:01:38.6]} 25... Rd8 {[%clk 0:01:29.7]} 26. Nd5 {[%clk
0:01:35.4]} 26... Ng6 {[%clk 0:01:27.9]} 1-0

[Event "*** Titled Tuesday Blitz"]
[Site "Chess.com"]
[Date "2020.11.03"]
[Round "2"]
[White "Godzillator"]
[Black "DraG0s3L"]
[Result "0-1"]
[WhiteElo "2302"]
[BlackElo "2601"]
[TimeControl "180+1"]
[EndTime "10:16:03 PST"]
[Termination "DraG0s3L won by resignation"]

1. d4 {[%clk 0:03:00.9]} 1... d5 {[%clk 0:02:58.4]} 2. c4 {[%clk 0:03:01.1]}
2... e6 {[%clk 0:02:56]} 3. cxd5 {[%clk 0:03:01.1]} 3... exd5 {[%clk 0:02:56.9]}
4. Nc3 {[%clk 0:03:01.5]} 4... Nf6 {[%clk 0:02:53.8]} 5. Bg5 {[%clk 0:03:01.5]}
5... Be7 {[%clk 0:02:52.8]} 6. e3 {[%clk 0:03:01.8]} 6... c6 {[%clk 0:02:52.4]}
7. Bd3 {[%clk 0:03:01.8]} 7... O-O {[%clk 0:02:52]} 8. Qc2 {[%clk 0:03:02.1]}
8... Nbd7 {[%clk 0:02:50.1]} 9. Nf3 {[%clk 0:03:01.9]} 9... Re8 {[%clk
0:02:50.1]} 10. O-O {[%clk 0:03:01.9]} 10... Ne4 {[%clk 0:02:47.3]} 11. Bf4
{[%clk 0:02:58.9]} 11... f5 {[%clk 0:02:45.4]} 12. Ne5 {[%clk 0:02:57.8]} 12...
Bf6 {[%clk 0:02:41.5]} 13. Nxd7 {[%clk 0:02:35.4]} 13... Bxd7 {[%clk 0:02:42.4]}
14. b4 {[%clk 0:02:27.6]} 14... a6 {[%clk 0:02:20.4]} 15. a4 {[%clk 0:02:23.9]}
15... Rc8 {[%clk 0:02:06.9]} 16. Rab1 {[%clk 0:02:23.8]} 16... Qe7 {[%clk
0:02:04.5]} 17. a5 {[%clk 0:02:16.4]} 17... g5 {[%clk 0:01:56.7]} 18. Bxe4
{[%clk 0:02:13.4]} 18... fxe4 {[%clk 0:01:55.5]} 19. Bg3 {[%clk 0:02:13.2]}
19... h5 {[%clk 0:01:55.1]} 20. h3 {[%clk 0:02:11.7]} 20... h4 {[%clk
0:01:54.3]} 21. Bh2 {[%clk 0:02:11.5]} 21... g4 {[%clk 0:01:55.1]} 22. hxg4
{[%clk 0:02:11.4]} 22... Bxg4 {[%clk 0:01:56]} 23. Ne2 {[%clk 0:02:08.5]} 23...
h3 {[%clk 0:01:55]} 24. gxh3 {[%clk 0:02:04.6]} 24... Bf3 {[%clk 0:01:45.1]} 25.
Ng3 {[%clk 0:02:00.3]} 25... Qe6 {[%clk 0:01:42.7]} 26. Ne2 {[%clk 0:01:48.3]}
26... Bg5 {[%clk 0:01:39]} 27. Nf4 {[%clk 0:01:21]} 27... Bxf4 {[%clk
0:01:38.8]} 28. exf4 {[%clk 0:01:16.3]} 28... Qxh3 {[%clk 0:01:38.9]} 0-1

[Event "*** Titled Tuesday Blitz"]
[Site "Chess.com"]
[Date "2020.11.03"]
[Round "2"]
[White "NefeLV"]
[Black "chessmachine14"]
[Result "0-1"]
[WhiteElo "1745"]
[BlackElo "2357"]
[TimeControl "180+1"]
[EndTime "10:16:10 PST"]
[Termination "chessmachine14 won by checkmate"]

1. c4 {[%clk 0:03:00.9]} 1... Nf6 {[%clk 0:02:59.6]} 2. d4 {[%clk 0:03:00.4]}
2... g6 {[%clk 0:02:59.6]} 3. Nc3 {[%clk 0:03:00]} 3... Bg7 {[%clk 0:02:59.9]}
4. e4 {[%clk 0:02:58.7]} 4... d6 {[%clk 0:03:00]} 5. f3 {[%clk 0:02:58.3]} 5...
O-O {[%clk 0:02:59.6]} 6. Bd3 {[%clk 0:02:58.2]} 6... c5 {[%clk 0:02:57.6]} 7.
Nge2 {[%clk 0:02:58]} 7... Nc6 {[%clk 0:02:56.9]} 8. Be3 {[%clk 0:02:55.9]} 8...
cxd4 {[%clk 0:02:56.2]} 9. Nxd4 {[%clk 0:02:54]} 9... Ng4 {[%clk 0:02:37.6]} 10.
Nxc6 {[%clk 0:02:39.6]} 10... Nxe3 {[%clk 0:02:37.3]} 11. Nxd8 {[%clk
0:02:37.2]} 11... Nxd1 {[%clk 0:02:37.1]} 12. Nxd1 {[%clk 0:02:29.9]} 12... Rxd8
{[%clk 0:02:36.4]} 13. O-O {[%clk 0:02:29.9]} 13... Be6 {[%clk 0:02:35]} 14. Rc1
{[%clk 0:02:28.8]} 14... a5 {[%clk 0:02:31.8]} 15. b3 {[%clk 0:02:24.9]} 15...
a4 {[%clk 0:02:31.1]} 16. Nc3 {[%clk 0:02:20.6]} 16... axb3 {[%clk 0:02:08.2]}
17. axb3 {[%clk 0:02:21]} 17... Ra3 {[%clk 0:02:08.3]} 18. Nd5 {[%clk
0:02:09.2]} 18... Bxd5 {[%clk 0:02:01.8]} 19. cxd5 {[%clk 0:02:08.6]} 19... Rxb3
{[%clk 0:02:01.8]} 20. Rfd1 {[%clk 0:02:07.9]} 20... Ra8 {[%clk 0:01:56.4]} 21.
Rc7 {[%clk 0:02:06.5]} 21... Kf8 {[%clk 0:01:55.4]} 22. Rdc1 {[%clk 0:02:01.1]}
22... Bf6 {[%clk 0:01:49.8]} 23. Bf1 {[%clk 0:01:50.9]} 23... Rb2 {[%clk
0:01:44.6]} 24. f4 {[%clk 0:01:32.7]} 24... Raa2 {[%clk 0:01:39.3]} 25. Rc8+
{[%clk 0:01:20.3]} 25... Kg7 {[%clk 0:01:38.9]} 26. g4 {[%clk 0:01:21.2]} 26...
Bd4+ {[%clk 0:01:37.7]} 27. Kh1 {[%clk 0:01:18.6]} 27... Rxh2# {[%clk
0:01:37.6]} 0-1

[Event "*** Titled Tuesday Blitz"]
[Site "Chess.com"]
[Date "2020.11.03"]
[Round "2"]
[White "Rital44"]
[Black "FMalexhdez"]
[Result "1-0"]
[WhiteElo "2472"]
[BlackElo "2296"]
[TimeControl "180+1"]
[EndTime "10:16:24 PST"]
[Termination "Rital44 won by resignation"]

1. e4 {[%clk 0:03:00.8]} 1... c5 {[%clk 0:02:59.9]} 2. Nf3 {[%clk 0:03:00.3]}
2... d6 {[%clk 0:03:00.5]} 3. d4 {[%clk 0:03:00]} 3... cxd4 {[%clk 0:03:01]} 4.
Nxd4 {[%clk 0:03:00.9]} 4... Nf6 {[%clk 0:03:01.7]} 5. Nc3 {[%clk 0:03:01]} 5...
a6 {[%clk 0:03:02.1]} 6. Be3 {[%clk 0:03:00.5]} 6... e5 {[%clk 0:03:02.5]} 7.
Nb3 {[%clk 0:02:59.2]} 7... Be6 {[%clk 0:03:02.9]} 8. h3 {[%clk 0:02:58.1]} 8...
Nbd7 {[%clk 0:03:02.3]} 9. g4 {[%clk 0:02:57.7]} 9... Nb6 {[%clk 0:03:00.8]} 10.
g5 {[%clk 0:02:57.1]} 10... Nfd7 {[%clk 0:03:00.9]} 11. Nd5 {[%clk 0:02:50.3]}
11... Nxd5 {[%clk 0:02:49.1]} 12. exd5 {[%clk 0:02:50.1]} 12... Bf5 {[%clk
0:02:49.8]} 13. c4 {[%clk 0:02:48.7]} 13... Rc8 {[%clk 0:02:47.8]} 14. Qf3
{[%clk 0:02:47.6]} 14... g6 {[%clk 0:02:41.9]} 15. h4 {[%clk 0:02:36.8]} 15...
Bg7 {[%clk 0:02:37.9]} 16. h5 {[%clk 0:02:37]} 16... e4 {[%clk 0:02:37.9]} 17.
Qe2 {[%clk 0:02:35.9]} 17... Ne5 {[%clk 0:02:27.4]} 18. h6 {[%clk 0:02:28.4]}
18... Nd3+ {[%clk 0:02:24.2]} 19. Qxd3 {[%clk 0:02:28.6]} 19... exd3 {[%clk
0:02:22.6]} 20. hxg7 {[%clk 0:02:29.5]} 20... Rg8 {[%clk 0:02:22.7]} 21. Rxh7
{[%clk 0:02:29.8]} 21... Qe7 {[%clk 0:01:54.6]} 22. Nd4 {[%clk 0:02:19.2]} 22...
Rxc4 {[%clk 0:01:47.9]} 23. Nxf5 {[%clk 0:02:18.6]} 23... gxf5 {[%clk
0:01:46.1]} 24. Bxd3 {[%clk 0:02:19.1]} 24... Rg4 {[%clk 0:01:05.8]} 25. Rh8
{[%clk 0:02:13.5]} 25... f6 {[%clk 0:00:27]} 26. Rxg8+ {[%clk 0:02:04.7]} 26...
Kf7 {[%clk 0:00:27.9]} 27. Rf8+ {[%clk 0:02:04.3]} 27... Kxg7 {[%clk 0:00:28.1]}
28. gxf6+ {[%clk 0:02:04.9]} 1-0

[Event "*** Titled Tuesday Blitz"]
[Site "Chess.com"]
[Date "2020.11.03"]
[Round "2"]
[White "jonaszmb"]
[Black "picturesquecheck"]
[Result "1-0"]
[WhiteElo "2399"]
[BlackElo "2127"]
[TimeControl "180+1"]
[EndTime "10:16:34 PST"]
[Termination "jonaszmb won by resignation"]

1. Nf3 {[%clk 0:03:00.9]} 1... Nf6 {[%clk 0:02:53.5]} 2. g3 {[%clk 0:03:01.2]}
2... c5 {[%clk 0:02:52.5]} 3. c4 {[%clk 0:03:00.8]} 3... g6 {[%clk 0:02:51.8]}
4. Bg2 {[%clk 0:03:01.1]} 4... Nc6 {[%clk 0:02:52.4]} 5. O-O {[%clk 0:03:01.2]}
5... Bg7 {[%clk 0:02:53]} 6. Nc3 {[%clk 0:03:01]} 6... O-O {[%clk 0:02:53.6]} 7.
d3 {[%clk 0:02:59.2]} 7... e6 {[%clk 0:02:53.8]} 8. e4 {[%clk 0:02:54.1]} 8...
b6 {[%clk 0:02:48.3]} 9. Bf4 {[%clk 0:02:45.5]} 9... h5 {[%clk 0:02:11.2]} 10.
Re1 {[%clk 0:02:29.4]} 10... Bb7 {[%clk 0:02:09.4]} 11. Nb5 {[%clk 0:02:20.3]}
11... Ng4 {[%clk 0:02:01.9]} 12. Bd6 {[%clk 0:02:11.6]} 12... Re8 {[%clk
0:01:39.9]} 13. Nc7 {[%clk 0:01:57.4]} 13... Bxb2 {[%clk 0:01:39.3]} 14. Rb1
{[%clk 0:01:48.8]} 14... Bc3 {[%clk 0:01:39.3]} 15. Nxe8 {[%clk 0:01:44.2]}
15... Bxe1 {[%clk 0:01:31.9]} 16. Qxe1 {[%clk 0:01:39]} 16... Qxe8 {[%clk
0:01:32]} 17. e5 {[%clk 0:01:37.1]} 17... Rc8 {[%clk 0:01:26.7]} 18. Qd2 {[%clk
0:01:32.8]} 18... Ne7 {[%clk 0:01:25.7]} 19. h3 {[%clk 0:01:30.7]} 19... Nf5
{[%clk 0:01:13.6]} 20. hxg4 {[%clk 0:01:25.4]} 20... hxg4 {[%clk 0:01:14.5]} 21.
Ng5 {[%clk 0:01:20.5]} 21... Bxg2 {[%clk 0:01:10.9]} 22. Kxg2 {[%clk 0:01:21.4]}
22... Rc6 {[%clk 0:00:56.2]} 23. Ne4 {[%clk 0:01:20.4]} 1-0

[Event "*** Titled Tuesday Blitz"]
[Site "Chess.com"]
[Date "2020.11.03"]
[Round "2"]
[White "Varinius"]
[Black "TurboSteen"]
[Result "1-0"]
[WhiteElo "2509"]
[BlackElo "2014"]
[TimeControl "180+1"]
[EndTime "10:16:35 PST"]
[Termination "Varinius won by resignation"]

1. d4 {[%clk 0:03:00.9]} 1... Nf6 {[%clk 0:02:56.7]} 2. Nf3 {[%clk 0:03:01]}
2... g6 {[%clk 0:02:54.4]} 3. c4 {[%clk 0:03:01.1]} 3... Bg7 {[%clk 0:02:51.4]}
4. Nc3 {[%clk 0:03:01.7]} 4... d5 {[%clk 0:02:37.7]} 5. e3 {[%clk 0:03:01.3]}
5... O-O {[%clk 0:02:30.5]} 6. cxd5 {[%clk 0:03:01.4]} 6... Nxd5 {[%clk
0:02:28.9]} 7. Bc4 {[%clk 0:03:02.1]} 7... Nxc3 {[%clk 0:02:28.6]} 8. bxc3
{[%clk 0:03:03]} 8... c5 {[%clk 0:02:27.6]} 9. O-O {[%clk 0:03:03.6]} 9... Nc6
{[%clk 0:02:20.5]} 10. Qe2 {[%clk 0:03:03.1]} 10... b6 {[%clk 0:02:17.8]} 11.
Rd1 {[%clk 0:03:02.7]} 11... Qc7 {[%clk 0:02:16.3]} 12. Rb1 {[%clk 0:03:00.8]}
12... e5 {[%clk 0:02:10.2]} 13. dxc5 {[%clk 0:02:35.9]} 13... Na5 {[%clk
0:02:03.2]} 14. Ba3 {[%clk 0:02:16.9]} 14... Nxc4 {[%clk 0:01:59.8]} 15. Qxc4
{[%clk 0:02:17]} 15... Be6 {[%clk 0:01:59.3]} 16. Qb5 {[%clk 0:02:01.4]} 16...
Bxa2 {[%clk 0:01:55]} 17. cxb6 {[%clk 0:01:55.7]} 17... axb6 {[%clk 0:01:51.7]}
18. Bxf8 {[%clk 0:01:55.2]} 18... Rxf8 {[%clk 0:01:29.9]} 19. Qxb6 {[%clk
0:01:50.4]} 19... Qxc3 {[%clk 0:01:26.4]} 20. Rbc1 {[%clk 0:01:48.5]} 20... Qa3
{[%clk 0:01:22]} 21. Ra1 {[%clk 0:01:45.2]} 21... e4 {[%clk 0:01:19.9]} 22. Nd4
{[%clk 0:01:44.4]} 22... Ra8 {[%clk 0:01:09.5]} 23. h3 {[%clk 0:01:33.7]} 23...
h6 {[%clk 0:01:04]} 24. Qc6 {[%clk 0:01:30.7]} 1-0

[Event "*** Titled Tuesday Blitz"]
[Site "Chess.com"]
[Date "2020.11.03"]
[Round "2"]
[White "ural58"]
[Black "Shield12"]
[Result "0-1"]
[WhiteElo "2352"]
[BlackElo "2906"]
[TimeControl "180+1"]
[EndTime "10:16:50 PST"]
[Termination "Shield12 won by resignation"]

1. e4 {[%clk 0:03:00.9]} 1... c5 {[%clk 0:03:00.5]} 2. b3 {[%clk 0:02:56.2]}
2... Nf6 {[%clk 0:02:59.7]} 3. e5 {[%clk 0:02:55.7]} 3... Nd5 {[%clk 0:03:00.1]}
4. Nc3 {[%clk 0:02:56.3]} 4... Nc7 {[%clk 0:02:55.8]} 5. d4 {[%clk 0:02:50.4]}
5... cxd4 {[%clk 0:02:55.5]} 6. Qxd4 {[%clk 0:02:50.6]} 6... Ne6 {[%clk
0:02:55.2]} 7. Qe4 {[%clk 0:02:50.6]} 7... Nc6 {[%clk 0:02:53.8]} 8. Bb2 {[%clk
0:02:47]} 8... g6 {[%clk 0:02:52.9]} 9. O-O-O {[%clk 0:02:46.1]} 9... Bg7 {[%clk
0:02:53]} 10. Nf3 {[%clk 0:02:38]} 10... O-O {[%clk 0:02:51.6]} 11. Bc4 {[%clk
0:02:37.1]} 11... b6 {[%clk 0:02:47.8]} 12. h4 {[%clk 0:02:35.2]} 12... Bb7
{[%clk 0:02:47.7]} 13. Bd5 {[%clk 0:02:34.8]} 13... Nc7 {[%clk 0:02:46.3]} 14.
h5 {[%clk 0:02:27.9]} 14... e6 {[%clk 0:02:42.5]} 15. Bxc6 {[%clk 0:02:26.8]}
15... Bxc6 {[%clk 0:02:43.4]} 16. Qf4 {[%clk 0:02:22.3]} 16... Rc8 {[%clk
0:02:34.8]} 17. Ne4 {[%clk 0:01:52.2]} 17... Bxe4 {[%clk 0:02:29.4]} 18. Qxe4
{[%clk 0:01:51.5]} 18... Nd5 {[%clk 0:02:29.9]} 19. Kb1 {[%clk 0:01:44.8]} 19...
b5 {[%clk 0:02:26.3]} 20. Nd4 {[%clk 0:01:23.1]} 20... a6 {[%clk 0:02:20.1]} 21.
Ne2 {[%clk 0:01:19.3]} 21... Qb6 {[%clk 0:01:57.5]} 22. f4 {[%clk 0:00:51.2]}
22... Qc6 {[%clk 0:01:52.5]} 23. Rc1 {[%clk 0:00:28.6]} 23... b4 {[%clk
0:01:48.1]} 24. Nd4 {[%clk 0:00:22.6]} 24... Nc3+ {[%clk 0:01:47.6]} 0-1

[Event "*** Titled Tuesday Blitz"]
[Site "Chess.com"]
[Date "2020.11.03"]
[Round "2"]
[White "SARGISMV"]
[Black "oskariot"]
[Result "0-1"]
[WhiteElo "2478"]
[BlackElo "2716"]
[TimeControl "180+1"]
[EndTime "10:16:51 PST"]
[Termination "oskariot won by resignation"]

1. d4 {[%clk 0:03:00.9]} 1... Nf6 {[%clk 0:03:00]} 2. c4 {[%clk 0:03:00.1]} 2...
c5 {[%clk 0:03:00.5]} 3. Nc3 {[%clk 0:03:00.9]} 3... cxd4 {[%clk 0:03:00.5]} 4.
Qxd4 {[%clk 0:03:01.7]} 4... Nc6 {[%clk 0:03:01.2]} 5. Qd3 {[%clk 0:03:02.1]}
5... g6 {[%clk 0:03:01.3]} 6. Nf3 {[%clk 0:02:59.7]} 6... Bg7 {[%clk 0:02:57.4]}
7. a3 {[%clk 0:03:00]} 7... O-O {[%clk 0:02:57.5]} 8. Bg5 {[%clk 0:02:57.7]}
8... d6 {[%clk 0:02:52.3]} 9. g3 {[%clk 0:02:53.7]} 9... Bg4 {[%clk 0:02:50.5]}
10. Bg2 {[%clk 0:02:53.3]} 10... Rc8 {[%clk 0:02:50.1]} 11. O-O {[%clk 0:02:34]}
11... Bxf3 {[%clk 0:02:49.3]} 12. Qxf3 {[%clk 0:02:34.9]} 12... Qb6 {[%clk
0:02:29.5]} 13. Bxf6 {[%clk 0:02:20.5]} 13... Bxf6 {[%clk 0:02:28.7]} 14. Nd5
{[%clk 0:02:12.9]} 14... Qxb2 {[%clk 0:02:19.7]} 15. Rab1 {[%clk 0:02:12.7]}
15... Qe5 {[%clk 0:02:04.3]} 16. Nxf6+ {[%clk 0:02:11.9]} 16... exf6 {[%clk
0:02:05.2]} 17. Rxb7 {[%clk 0:01:59]} 17... Nd4 {[%clk 0:02:05.3]} 18. Qd5
{[%clk 0:01:55.3]} 18... Nxe2+ {[%clk 0:02:05.3]} 19. Kh1 {[%clk 0:01:55.3]}
19... Nc3 {[%clk 0:01:54.3]} 20. Qd3 {[%clk 0:01:49.9]} 20... Na4 {[%clk
0:01:35.6]} 21. Rxa7 {[%clk 0:01:47]} 21... Nb2 {[%clk 0:01:30.4]} 22. Qd5
{[%clk 0:01:27.3]} 22... Nxc4 {[%clk 0:01:30.2]} 23. Rc1 {[%clk 0:01:26.9]}
23... Ne3 {[%clk 0:01:18.5]} 24. Qxf7+ {[%clk 0:00:58.3]} 24... Rxf7 {[%clk
0:01:17]} 25. Rxc8+ {[%clk 0:00:58.9]} 25... Kg7 {[%clk 0:01:16.6]} 26. Rxf7+
{[%clk 0:00:54.4]} 26... Kxf7 {[%clk 0:01:17]} 27. fxe3 {[%clk 0:00:55.2]} 27...
Qa1+ {[%clk 0:01:16.3]} 0-1

[Event "*** Titled Tuesday Blitz"]
[Site "Chess.com"]
[Date "2020.11.03"]
[Round "2"]
[White "vinniethepooh"]
[Black "Smirnov_Pavel"]
[Result "1-0"]
[WhiteElo "2577"]
[BlackElo "2836"]
[TimeControl "180+1"]
[EndTime "10:16:52 PST"]
[Termination "vinniethepooh won by resignation"]

1. d4 {[%clk 0:03:00.9]} 1... Nf6 {[%clk 0:02:59.2]} 2. c4 {[%clk 0:03:01.1]}
2... e6 {[%clk 0:02:59.5]} 3. Nc3 {[%clk 0:03:01.6]} 3... Bb4 {[%clk 0:02:59.4]}
4. f3 {[%clk 0:03:02.1]} 4... c5 {[%clk 0:02:57.7]} 5. d5 {[%clk 0:03:02.2]}
5... O-O {[%clk 0:02:57.5]} 6. e4 {[%clk 0:03:02.6]} 6... b5 {[%clk 0:02:58.1]}
7. e5 {[%clk 0:03:03.1]} 7... Ne8 {[%clk 0:02:57.1]} 8. f4 {[%clk 0:03:03.4]}
8... exd5 {[%clk 0:02:56.8]} 9. cxd5 {[%clk 0:03:04.3]} 9... d6 {[%clk
0:02:56.4]} 10. Nf3 {[%clk 0:03:04.6]} 10... Nc7 {[%clk 0:02:50]} 11. Bd3 {[%clk
0:03:03.6]} 11... dxe5 {[%clk 0:02:17.2]} 12. d6 {[%clk 0:02:53.8]} 12... Nd5
{[%clk 0:01:39.8]} 13. Bxh7+ {[%clk 0:02:14.5]} 13... Kxh7 {[%clk 0:01:40.7]}
14. Qxd5 {[%clk 0:02:07.1]} 14... Qb6 {[%clk 0:01:35.5]} 15. Ng5+ {[%clk
0:01:56.1]} 15... Kg8 {[%clk 0:01:31.9]} 16. Qe4 {[%clk 0:01:37.7]} 16... g6
{[%clk 0:01:24.4]} 17. fxe5 {[%clk 0:01:36.1]} 17... Kg7 {[%clk 0:00:34.9]} 18.
O-O {[%clk 0:01:30.7]} 18... Bf5 {[%clk 0:00:24.5]} 19. Rxf5 {[%clk 0:01:23.8]}
19... gxf5 {[%clk 0:00:25.4]} 1-0